bitfinex/quotes_BTCUSD_20260104
["timestamp","ask_amount","ask_price","bid_price","bid_amount"]
[1767534993992,0.01096575,91193.0,91187.0,0.11402673]
[1767534994197,0.01096575,91193.0,91188.0,0.04822821]
[1767534995567,0.01096587,91192.0,91188.0,0.04822821]
[1767534995973,0.06579527,91192.0,91188.0,0.04822821]
[1767534997813,0.06579401,91194.0,91190.0,0.04822821]
[1767534998010,0.01096527,91197.0,91194.0,0.000999]
[1767534998580,0.06579207,91197.0,91191.0,0.04822821]
[1767534999057,0.01096539,91196.0,91191.0,0.04822821]
[1767534999256,0.06579207,91197.0,91191.0,0.0591942]
[1767534999692,0.01096539,91196.0,91191.0,0.0591942]
[1767535000601,0.01096551,91195.0,91191.0,0.04822821]
[1767535002642,0.01096551,91195.0,91191.0,0.04722921]
[1767535007014,0.01096539,91196.0,91191.0,0.04722921]
[1767535007140,0.06579163,91197.0,91191.0,0.04722921]
[1767535007141,0.01096527,91197.0,91196.0,0.04822821]
[1767535007343,0.01096527,91197.0,91196.0,0.03525447]
[1767535007541,0.02493814,91196.0,91192.0,0.0657952]
[1767535007906,0.0095855,91196.0,91195.0,0.04524206]
[1767535008066,0.02192,91198.0,91196.0,0.05582582]
[1767535008264,0.02192,91198.0,91196.0,0.10405403]
[1767535008470,0.00048912,91199.0,91198.0,0.04822821]
[1767535008672,0.00039857,91199.0,91197.0,0.05482589]
[1767535008849,0.00039857,91199.0,91198.0,0.04822821]
[1767535009334,5.7e-07,91199.0,91198.0,0.04822821]
[1767535009534,5.7e-07,91199.0,91198.0,0.10305397]
[1767535009972,5.7e-07,91199.0,91195.0,0.01096551]
[1767535010123,5.7e-07,91199.0,91197.0,0.05482583]
[1767535010751,5.7e-07,91199.0,91198.0,0.05482576]
[1767535011628,5.7e-07,91199.0,91197.0,0.05482583]
[1767535011965,5.7e-07,91199.0,91198.0,0.05482576]
[1767535016771,0.04754907,91199.0,91197.0,0.05482583]
[1767535017202,5.7e-07,91199.0,91198.0,0.05482576]
[1767535018426,0.000398,91198.0,91197.0,0.05482583]
[1767535018607,0.00030744,91198.0,91197.0,0.05482583]
[1767535018807,5.7e-07,91199.0,91197.0,0.05482583]
[1767535019215,5.7e-07,91199.0,91198.0,0.04822821]
[1767535019520,5.7e-07,91199.0,91198.0,0.04792021]
[1767535020361,5.7e-07,91199.0,91198.0,0.05482576]
[1767535020793,5.7e-07,91199.0,91198.0,0.05451776]
[1767535021644,5.7e-07,91199.0,91197.0,0.05482583]
[1767535022660,5.7e-07,91199.0,91194.0,0.01096563]
[1767535022887,5.7e-07,91199.0,91194.0,0.06579374]
[1767535023183,5.7e-07,91199.0,91195.0,0.01096551]
[1767535024818,5.7e-07,91199.0,91195.0,0.05772589]
[1767535025441,5.7e-07,91199.0,91197.0,0.04676038]
[1767535029155,5.7e-07,91199.0,91194.0,0.1015881]
[1767535029357,5.7e-07,91199.0,91194.0,0.11255373]
[1767535030134,5.7e-07,91199.0,91197.0,0.04676038]
[1767535030589,5.7e-07,91199.0,91198.0,0.05482576]
[1767535031733,5.7e-07,91199.0,91198.0,0.10158614]
[1767535031958,5.7e-07,91199.0,91198.0,0.05482576]
[1767535035661,5.7e-07,91199.0,91198.0,0.04676038]
[1767535036497,5.7e-07,91199.0,91198.0,0.05482576]
[1767535036711,5.7e-07,91199.0,91197.0,0.05482593]
[1767535038099,5.7e-07,91199.0,91198.0,0.05482576]
[1767535038340,5.7e-07,91199.0,91197.0,0.05482593]
[1767535038697,5.7e-07,91199.0,91196.0,0.01096539]
[1767535039252,5.7e-07,91199.0,91196.0,0.06579194]
[1767535039466,5.7e-07,91199.0,91198.0,0.05482576]
[1767535039874,0.00572053,91222.0,91198.0,0.05482576]
[1767535039875,0.01096383,91209.0,91204.0,0.01096443]
[1767535040071,0.02192,91208.0,91204.0,0.01096443]
[1767535040306,0.02192,91208.0,91205.0,0.01096431]
[1767535040431,0.02192,91207.0,91206.0,0.01096419]
[1767535040636,0.02192,91207.0,91205.0,0.0657854]
[1767535041265,0.02192,91207.0,91204.0,0.06578651]
[1767535041468,0.02192,91207.0,91204.0,0.01096443]
[1767535041662,0.02192,91207.0,91206.0,0.04676038]
[1767535041909,0.01096358,91211.0,91207.0,0.04676038]
[1767535042082,0.02192,91210.0,91207.0,0.04676038]
[1767535043051,0.02192,91210.0,91207.0,0.04647462]
[1767535043232,0.02192,91210.0,91207.0,0.05743869]
[1767535043387,0.02192,91210.0,91207.0,0.04647462]
[1767535045048,0.01096358,91211.0,91207.0,0.04647462]
[1767535045284,0.02192,91210.0,91207.0,0.05743869]
[1767535045681,0.04412576,91209.0,91207.0,0.01096407]
[1767535045886,0.04412576,91209.0,91207.0,0.06578436]
[1767535046396,0.04412576,91212.0,91209.0,0.000999]
[1767535046553,0.04412576,91212.0,91208.0,0.01096395]
[1767535046731,0.05508922,91212.0,91207.0,0.01096407]
[1767535046932,0.06578118,91212.0,91207.0,0.05772445]
[1767535047173,0.06578013,91213.0,91212.0,0.04676038]
[1767535047611,0.06578008,91213.0,91212.0,0.04676038]
[1767535048576,0.01096334,91213.0,91212.0,0.04676038]
[1767535048911,0.01096334,91213.0,91209.0,0.04676038]
[1767535049129,0.11368054,91214.0,91209.0,0.01096383]
[1767535049329,0.04790102,91213.0,91209.0,0.01096383]
[1767535050109,0.05886436,91213.0,91209.0,0.01096383]
[1767535050462,0.04790102,91213.0,91209.0,0.01096383]
[1767535051258,0.04690202,91213.0,91211.0,0.05481794]
[1767535051460,0.06577798,91216.0,91210.0,0.06578225]
[1767535051664,0.0109631,91215.0,91210.0,0.06578225]
[1767535052303,0.01096298,91216.0,91211.0,0.01096358]
[1767535052631,0.0224716,91221.0,91217.0,0.04679824]
[1767535052836,0.0224716,91221.0,91218.0,0.01096274]
[1767535053283,0.0224716,91221.0,91218.0,0.06577646]
[1767535053471,0.0224716,91221.0,91218.0,0.1125747]
[1767535053668,0.0224716,91221.0,91218.0,0.04679824]
[1767535054172,0.03343398,91221.0,91218.0,0.04579924]
[1767535056569,0.08824593,91221.0,91218.0,0.04579924]
[1767535059351,0.03343398,91221.0,91218.0,0.04579924]
[1767535059781,0.08824648,91221.0,91218.0,0.04579924]
[1767535059979,0.03343398,91221.0,91218.0,0.04579924]
[1767535060592,0.03343398,91221.0,91216.0,0.01096298]
[1767535060593,0.01096238,91221.0,91217.0,0.01096286]
[1767535060816,0.03288238,91221.0,91216.0,0.06577769]
[1767535061014,0.08769438,91221.0,91216.0,0.11292419]
[1767535061190,0.08760598,91221.0,91216.0,0.11292419]
[1767535061369,0.08760598,91221.0,91216.0,0.05810948]
[1767535063601,0.04894858,91220.0,91215.0,0.02674125]
[1767535064005,0.04894858,91220.0,91216.0,0.05481487]
[1767535064233,0.03279398,91221.0,91216.0,0.06577785]
[1767535064427,0.0378832,91221.0,91216.0,0.06577785]
[1767535064766,0.00508922,91220.0,91216.0,0.06577785]
[1767535065095,0.00508922,91219.0,91216.0,0.01096298]
[1767535065294,0.00508922,91219.0,91215.0,0.0109631]
[1767535066266,0.000999,91215.0,91211.0,0.01096358]
[1767535066471,0.01606091,91216.0,91210.0,0.06578106]
[1767535066625,0.06577868,91215.0,91210.0,0.06578106]
[1767535066829,0.06451924,91215.0,91210.0,0.06578106]
[1767535067165,0.06335032,91215.0,91210.0,0.06578106]
[1767535067548,0.06843954,91215.0,91210.0,0.06578106]
[1767535068187,0.06335032,91215.0,91210.0,0.06578106]
[1767535068772,0.01326193,91215.0,91210.0,0.06578106]
[1767535068973,0.02193467,91216.0,91211.0,0.0471465]
[1767535069154,0.02193467,91216.0,91211.0,0.05811008]
[1767535069355,0.02193467,91216.0,91212.0,0.0471465]
[1767535070440,0.02193467,91216.0,91212.0,0.05810996]
[1767535070616,0.01096298,91216.0,91212.0,0.05810996]
[1767535070844,0.01096286,91217.0,91214.0,0.0471465]
[1767535071199,0.06577704,91218.0,91214.0,0.0471465]
[1767535071404,0.06561121,91218.0,91214.0,0.0471465]
[1767535072205,0.01096286,91217.0,91214.0,0.0471465]
[1767535072606,0.06577728,91217.0,91214.0,0.0471465]
[1767535074486,0.06561121,91218.0,91214.0,0.0471465]
[1767535074698,0.05991144,91217.0,91213.0,0.01096334]
[1767535075067,0.05991144,91217.0,91212.0,0.06578076]
[1767535075529,0.04894858,91217.0,91214.0,0.01096322]
[1767535076272,0.04894858,91217.0,91214.0,0.06577885]
[1767535076810,0.04894858,91217.0,91214.0,0.01096322]
[1767535077169,0.01096274,91218.0,91215.0,0.0471465]
[1767535078115,0.06577663,91218.0,91215.0,0.0471465]
[1767535078472,0.01096286,91217.0,91214.0,0.0471465]
[1767535078855,0.0657784,91217.0,91214.0,0.0461475]
[1767535078971,0.01096286,91217.0,91214.0,0.0461475]
[1767535079176,0.0657081,91218.0,91214.0,0.0461475]
[1767535079415,0.01089393,91218.0,91214.0,0.0461475]
[1767535080964,0.01096286,91217.0,91214.0,0.0461475]
[1767535081516,0.06577764,91217.0,91214.0,0.0461475]
[1767535081726,0.01096286,91217.0,91214.0,0.0461475]
[1767535081930,0.01089393,91218.0,91214.0,0.0461475]
[1767535082127,0.01096286,91217.0,91214.0,0.0461475]
[1767535082328,0.06570817,91218.0,91214.0,0.0461475]
[1767535082752,0.01096286,91217.0,91214.0,0.0461475]
[1767535083694,0.06568887,91217.0,91214.0,0.0461475]
[1767535084200,0.06570817,91218.0,91214.0,0.0461475]
[1767535085820,0.01096286,91217.0,91214.0,0.0461475]
[1767535086209,0.01096286,91217.0,91212.0,0.06578073]
[1767535086420,0.04512488,91216.0,91213.0,0.06578007]
[1767535086626,0.04512488,91216.0,91212.0,0.06578073]
[1767535087143,0.04412588,91216.0,91213.0,0.06577971]
[1767535088151,0.04405707,91216.0,91214.0,0.05481607]
[1767535088355,0.04405707,91216.0,91215.0,0.05481554]
[1767535088528,0.06577616,91220.0,91215.0,0.05481554]
[1767535088529,0.01096262,91219.0,91215.0,0.05481554]
[1767535089050,0.03309373,91218.0,91215.0,0.02172181]
[1767535089378,0.03309373,91218.0,91214.0,0.06577929]
[1767535090900,0.06577661,91218.0,91213.0,0.06578005]
[1767535091034,0.01096274,91218.0,91214.0,0.01096322]
[1767535091684,0.01096286,91217.0,91213.0,0.01096334]
[1767535091911,0.06577727,91217.0,91212.0,0.06578027]
[1767535092670,0.06577689,91218.0,91213.0,0.06577981]
[1767535093413,0.01096274,91218.0,91214.0,0.01096322]
[1767535093618,0.01096274,91218.0,91215.0,0.04672378]
[1767535093819,0.06577679,91219.0,91218.0,0.04672378]
[1767535094022,0.06577679,91219.0,91218.0,0.04572478]
[1767535098270,0.06570774,91218.0,91214.0,0.01096322]
[1767535098503,0.01196174,91217.0,91213.0,0.06578004]
[1767535098725,0.01096274,91217.0,91213.0,0.06578004]
[1767535098919,0.01096286,91217.0,91213.0,0.06578004]
[1767535099093,0.01089393,91218.0,91214.0,0.057687]
[1767535099321,0.01570782,91218.0,91215.0,0.04672378]
[1767535100065,0.02667056,91218.0,91215.0,0.04672378]
[1767535100262,0.06577477,91221.0,91218.0,0.04672378]
[1767535100581,0.05481314,91219.0,91218.0,0.04672378]
[1767535100781,0.05472472,91219.0,91218.0,0.04672378]
[1767535101779,0.05472472,91219.0,91218.0,0.04572478]
[1767535101984,0.05472472,91219.0,91218.0,0.04543903]
[1767535103193,0.05465591,91219.0,91218.0,0.04543903]
[1767535105632,0.06577434,91221.0,91218.0,0.04543903]
[1767535105985,0.05481274,91220.0,91218.0,0.04543903]
[1767535106210,0.06577524,91220.0,91215.0,0.06577823]
[1767535109308,0.0488823,91218.0,91205.0,0.21928419]
[1767535109517,0.1146635,91213.0,91207.0,0.06578389]
[1767535109725,0.01096334,91213.0,91209.0,0.05768761]
[1767535110123,0.06577978,91215.0,91211.0,0.01096358]
[1767535110248,0.06577978,91215.0,91214.0,0.046078]
[1767535110830,0.06571097,91215.0,91214.0,0.046078]
[1767535111956,0.0099641,91215.0,91212.0,0.046078]
[1767535112341,0.0099641,91215.0,91210.0,0.0657819]
[1767535113027,0.06477981,91215.0,91210.0,0.0657819]
[1767535113707,0.01096322,91214.0,91210.0,0.01096371]
[1767535115162,0.0099641,91215.0,91211.0,0.05878083]
[1767535115467,0.01096322,91214.0,91211.0,0.04781725]
[1767535116167,0.06478007,91215.0,91211.0,0.04781725]
[1767535116929,0.0099641,91215.0,91211.0,0.04781725]
[1767535117130,0.0099641,91215.0,91211.0,0.05878083]
[1767535117328,0.06477966,91215.0,91211.0,0.05878083]
[1767535118007,0.0099641,91215.0,91211.0,0.05878083]
[1767535118219,0.00989529,91215.0,91211.0,0.05878083]
[1767535118573,0.00989529,91215.0,91212.0,0.04781725]
[1767535118772,0.06471113,91215.0,91212.0,0.04781725]
[1767535120320,0.06471113,91215.0,91208.0,0.0141917]
[1767535120657,0.0657796,91214.0,91210.0,0.04781725]
[1767535121411,0.01096322,91214.0,91210.0,0.05878096]
[1767535121728,0.06471113,91215.0,91211.0,0.04781725]
[1767535123107,0.06471113,91215.0,91210.0,0.06578199]
[1767535123241,0.06471113,91215.0,91210.0,0.11359924]
[1767535123591,0.06577944,91214.0,91210.0,0.04781725]
[1767535124148,0.05481676,91213.0,91210.0,0.04781725]
[1767535124390,0.06577944,91214.0,91210.0,0.04781725]
[1767535124976,0.06571063,91214.0,91210.0,0.04781725]
[1767535125384,0.06571063,91214.0,91210.0,0.05878096]
[1767535125589,0.01096322,91214.0,91211.0,0.04781725]
[1767535125750,9.881e-05,91214.0,91211.0,0.11359858]
[1767535125952,9.881e-05,91214.0,91211.0,0.11359852]
[1767535126175,9.881e-05,91214.0,91211.0,0.06578127]
[1767535126847,9.881e-05,91214.0,91212.0,0.05481687]
[1767535127249,0.000999,91212.0,91211.0,0.06578135]
[1767535127458,9.881e-05,91214.0,91210.0,0.06578208]
[1767535128537,9.881e-05,91214.0,91206.0,0.26710106]
[1767535128843,9.881e-05,91214.0,91211.0,0.01096358]
[1767535129201,0.06587826,91214.0,91209.0,0.05878108]
[1767535129403,0.000999,91211.0,91210.0,0.05481855]
[1767535129606,0.06587823,91214.0,91210.0,0.01096371]
[1767535130232,9.881e-05,91214.0,91211.0,0.06578147]
[1767535131345,9.881e-05,91214.0,91212.0,0.05481731]
[1767535131749,9.881e-05,91214.0,91211.0,0.06578147]
[1767535133270,0.04589626,91213.0,91211.0,0.01578147]
[1767535133468,0.04589626,91213.0,91211.0,0.05481754]
[1767535133672,0.04589626,91213.0,91211.0,0.06578112]
[1767535134079,9.881e-05,91214.0,91211.0,0.06578112]
[1767535134278,9.881e-05,91214.0,91213.0,0.04781725]
[1767535134479,2.981e-05,91214.0,91213.0,0.10263399]
[1767535135578,2.981e-05,91214.0,91213.0,0.04781725]
[1767535138538,2.981e-05,91214.0,91213.0,0.04681825]
[1767535138735,0.05484595,91214.0,91213.0,0.04681825]
[1767535139739,0.01096383,91209.0,91205.0,0.05482148]
[1767535139939,0.06578083,91212.0,91206.0,0.06578509]
[1767535140140,0.06578011,91213.0,91207.0,0.01096407]
[1767535140316,0.01096358,91211.0,91207.0,0.01096407]
[1767535140522,0.06551007,91211.0,91210.0,0.00065104]
[1767535140717,0.06551007,91211.0,91210.0,0.04611896]
[1767535140923,0.06551005,91211.0,91210.0,0.00065104]
[1767535141524,0.06451105,91211.0,91210.0,0.00065104]
[1767535141702,0.06451105,91211.0,91210.0,0.04611896]
[1767535142558,0.06451105,91211.0,91210.0,0.04511996]
[1767535142918,0.01096383,91209.0,91203.0,0.05482236]
[1767535143417,0.01096383,91209.0,91202.0,0.03288467]
[1767535143418,0.05482081,91207.0,91202.0,0.03288467]
[1767535143600,0.06083833,91205.0,91202.0,0.02192]
[1767535143807,0.06083833,91205.0,91182.0,0.43867842]
[1767535143808,0.10469624,91204.0,91197.0,0.05482634]
[1767535144041,0.05482503,91200.0,91198.0,0.00656736]
[1767535144195,0.01035504,91198.0,91195.0,0.0333651]
[1767535144396,0.01096587,91192.0,91185.0,0.07675308]
[1767535144724,0.065795,91193.0,91189.0,0.04561952]
[1767535144944,0.065795,91193.0,91192.0,0.04546792]
[1767535146945,0.01096551,91195.0,91192.0,0.04546792]
[1767535147127,0.00796355,91193.0,91192.0,0.04546792]
[1767535147332,0.06579165,91197.0,91193.0,0.04646692]
[1767535147498,0.06579001,91200.0,91194.0,0.04546792]
[1767535147942,0.06579001,91200.0,91195.0,0.04546792]
[1767535148316,0.06579001,91200.0,91195.0,0.05643343]
[1767535149076,0.02185031,91198.0,91195.0,0.05643343]
[1767535149270,0.02185031,91198.0,91195.0,0.01096551]
[1767535150309,0.02176188,91198.0,91196.0,0.04546792]
[1767535150514,0.02167344,91198.0,91196.0,0.04546792]
[1767535151557,0.02167344,91198.0,91197.0,0.04546792]
[1767535152305,0.02167344,91198.0,91195.0,0.06579294]
[1767535152507,0.02167344,91198.0,91196.0,0.05482669]
[1767535153303,0.02167344,91198.0,91195.0,0.06579294]
[1767535155877,0.02167344,91198.0,91196.0,0.04546792]
[1767535156390,0.00620056,91198.0,91196.0,0.04546792]
[1767535157734,0.00611212,91198.0,91197.0,0.04546792]
[1767535163842,0.06093788,91198.0,91197.0,0.04546792]
[1767535164187,0.05482576,91198.0,91197.0,0.04546792]
[1767535165276,0.05482576,91198.0,91197.0,0.0393558]
[1767535165430,0.0004795,91199.0,91197.0,0.0393558]
[1767535165640,0.0004795,91199.0,91195.0,0.01096551]
[1767535165841,0.0004795,91199.0,91196.0,0.01096539]
[1767535166124,0.0048777,91198.0,91196.0,0.00608769]
[1767535166496,0.0004795,91199.0,91196.0,0.05155561]
[1767535166653,0.0004795,91199.0,91197.0,0.04546792]
[1767535166858,5e-07,91199.0,91197.0,0.04546792]
[1767535170286,0.05482617,91199.0,91197.0,0.04546792]
[1767535170468,5e-07,91199.0,91197.0,0.04498892]
[1767535174045,5e-07,91199.0,91198.0,0.04736169]
[1767535176688,0.01096395,91208.0,91205.0,0.04736169]
[1767535176890,0.03288848,91209.0,91208.0,0.000999]
[1767535177095,0.05480848,91209.0,91208.0,0.04836069]
[1767535177299,0.03288383,91209.0,91199.0,0.01096503]
[1767535177540,0.06578497,91207.0,91203.0,0.01096455]
[1767535177856,0.06578534,91206.0,91201.0,0.1131504]
[1767535178189,0.01096419,91206.0,91202.0,0.06578782]
[1767535178389,0.06578533,91206.0,91202.0,0.01096467]
[1767535178700,0.06578533,91206.0,91201.0,0.11286428]
[1767535178904,0.01096431,91205.0,91201.0,0.11286428]
[1767535179089,0.06578599,91205.0,91201.0,0.11286428]
[1767535179854,0.06578533,91206.0,91201.0,0.11286386]
[1767535179992,0.01096419,91206.0,91202.0,0.06578759]
[1767535180327,0.06578553,91207.0,91202.0,0.06578759]
[1767535180531,0.06578553,91207.0,91203.0,0.06578702]
[1767535181276,0.06578381,91208.0,91203.0,0.06578702]
[1767535182047,0.06578381,91208.0,91204.0,0.01096443]
[1767535182437,0.03288779,91210.0,91206.0,0.04736169]
[1767535182646,0.01096334,91213.0,91210.0,0.04736169]
[1767535182860,0.02192,91212.0,91210.0,0.04736169]
[1767535183066,0.02192,91212.0,91209.0,0.01096383]
[1767535183301,0.02192,91212.0,91209.0,0.00996483]
[1767535183502,0.02192,91211.0,91210.0,0.01096371]
[1767535183709,0.054757,91211.0,91210.0,0.05312723]
[1767535184023,0.055756,91211.0,91210.0,0.05312723]
[1767535184220,0.033836,91211.0,91210.0,0.05312723]
[1767535184425,0.055756,91211.0,91210.0,0.01096371]
[1767535185393,0.055756,91211.0,91210.0,0.06578226]
[1767535185795,0.055756,91211.0,91210.0,0.01096371]
[1767535185967,0.055756,91211.0,91210.0,0.06578226]
[1767535186583,0.02192,91211.0,91207.0,0.21928141]
[1767535186804,0.02192,91211.0,91209.0,0.05481873]
[1767535187209,0.02192,91211.0,91209.0,0.06578256]
[1767535187925,0.000999,91209.0,91208.0,0.0657837]
[1767535188130,0.02192,91211.0,91209.0,0.0548188]
[1767535188300,0.02192,91211.0,91209.0,0.10218049]
[1767535188505,0.02192,91211.0,91210.0,0.04736169]
[1767535189859,0.03288685,91212.0,91210.0,0.04736169]
[1767535190068,0.02192,91211.0,91210.0,0.04736169]
[1767535193459,0.02192,91211.0,91210.0,0.10218024]
[1767535194523,0.02192,91211.0,91210.0,0.04736169]
[1767535194950,2.981e-05,91214.0,91211.0,0.04736169]
[1767535195154,0.05481597,91215.0,91213.0,0.04736169]
[1767535195320,0.07673614,91214.0,91213.0,0.04736169]
[1767535195522,0.0090746,91214.0,91212.0,0.04736169]
[1767535196465,0.06389079,91214.0,91212.0,0.04736169]
[1767535196672,0.06389079,91214.0,91212.0,0.04636269]
[1767535196869,0.01096322,91214.0,91211.0,0.04736169]
[1767535197076,0.08769947,91214.0,91211.0,0.04736169]
[1767535198142,0.03288322,91214.0,91211.0,0.04736169]
[1767535200212,0.08769945,91214.0,91211.0,0.04736169]
[1767535200421,0.05481686,91213.0,91211.0,0.04736169]
[1767535201883,0.05481734,91212.0,91211.0,0.04736169]
[1767535202111,0.08770049,91214.0,91211.0,0.04736169]
[1767535202525,0.08670149,91214.0,91211.0,0.04736169]
[1767535203604,0.01096238,91221.0,91215.0,0.04634161]
[1767535203793,0.03288238,91221.0,91218.0,0.04634161]
[1767535203988,0.03288238,91221.0,91218.0,0.04534261]
[1767535204197,0.05481274,91220.0,91218.0,0.04534261]
[1767535204946,0.05481314,91219.0,91218.0,0.04534261]
[1767535205181,0.06577751,91217.0,91214.0,0.04634161]
[1767535205959,0.05481533,91216.0,91214.0,0.04634161]
[1767535206291,0.06577751,91217.0,91214.0,0.04634161]
[1767535206639,0.05481511,91216.0,91214.0,0.04634161]
[1767535206839,0.01096286,91217.0,91208.0,0.04634161]
[1767535208130,0.06577911,91215.0,91209.0,0.01096383]
[1767535208370,0.06577911,91215.0,91210.0,0.05730532]
[1767535208551,0.06577879,91215.0,91211.0,0.06578145]
[1767535208767,0.05481494,91216.0,91212.0,0.06578069]
[1767535208979,0.01096286,91217.0,91213.0,0.01096334]
[1767535209174,0.0657774,91217.0,91213.0,0.01096334]
[1767535209541,0.01096286,91217.0,91212.0,0.06578069]
[1767535209738,0.06577749,91217.0,91213.0,0.01096334]
[1767535210201,0.01096322,91214.0,91206.0,0.0573058]
[1767535210398,0.01096383,91209.0,91204.0,0.01096443]
[1767535210558,0.05482099,91206.0,91203.0,0.04634161]
[1767535210762,0.01096419,91206.0,91203.0,0.04634161]
[1767535211166,0.06578533,91206.0,91202.0,0.05730628]
[1767535211429,0.06578442,91207.0,91202.0,0.1121293]
[1767535211593,0.01096419,91206.0,91202.0,0.04634161]
[1767535211820,0.01096419,91206.0,91202.0,0.11212959]
[1767535211994,0.05755446,91207.0,91206.0,0.000999]
[1767535212191,0.04659039,91207.0,91203.0,0.02995269]
[1767535212589,0.06578375,91208.0,91203.0,0.02995269]
[1767535213369,0.06578351,91209.0,91204.0,0.06578635]
[1767535213881,0.05482111,91206.0,91202.0,0.01096467]
[1767535214011,0.05482088,91207.0,91202.0,0.01096467]
[1767535214570,0.01096455,91203.0,91198.0,0.05482465]
[1767535214712,0.00053418,91202.0,91197.0,0.05482634]
[1767535214916,0.06632221,91202.0,91198.0,0.05482565]
[1767535215156,0.01096455,91203.0,91198.0,0.0657908]
[1767535215300,0.06422523,91203.0,91198.0,0.01096515]
[1767535215505,0.01096467,91202.0,91198.0,0.01096515]
[1767535215738,0.06422523,91203.0,91202.0,0.00065102]
[1767535217343,0.05482493,91200.0,91195.0,0.04682112]
[1767535217521,0.05482493,91200.0,91196.0,0.04634161]
[1767535217522,0.01096491,91200.0,91196.0,0.04634161]
[1767535217723,0.06578967,91200.0,91196.0,0.04634161]
[1767535218172,0.06578967,91200.0,91196.0,0.057307]
[1767535218723,0.06578957,91200.0,91197.0,0.04634161]
[1767535220498,0.06578957,91200.0,91195.0,0.04682112]
[1767535220499,0.01096515,91198.0,91195.0,0.04682112]
[1767535220712,0.01096515,91198.0,91195.0,0.00047951]
[1767535220998,0.05482643,91197.0,91195.0,0.04682112]
[1767535221479,0.05482639,91197.0,91195.0,0.04682112]
[1767535222380,0.05482696,91196.0,91195.0,0.04682112]
[1767535222703,0.05482696,91196.0,91195.0,0.04582212]
[1767535223768,0.05482696,91196.0,91195.0,0.04589324]
[1767535224396,0.05382796,91196.0,91195.0,0.04589324]
[1767535225450,0.06579113,91198.0,91195.0,0.04589324]
[1767535230890,0.05482695,91197.0,91195.0,0.04589324]
[1767535231441,0.05482696,91196.0,91195.0,0.04589324]
[1767535232084,0.05482695,91197.0,91195.0,0.04589324]
[1767535233420,0.05482696,91196.0,91195.0,0.04589324]
[1767535233914,0.05482695,91197.0,91195.0,0.04589324]
[1767535234321,0.05482696,91196.0,91195.0,0.04589324]
[1767535234746,0.05482695,91197.0,91195.0,0.04589324]
[1767535236661,0.05482696,91196.0,91195.0,0.04589324]
[1767535237069,0.05482695,91197.0,91195.0,0.04589324]
[1767535237650,0.05482696,91196.0,91195.0,0.04589324]
[1767535238199,0.05482695,91197.0,91195.0,0.04589324]
[1767535238403,0.06579095,91198.0,91195.0,0.04589324]
[1767535238988,0.05482656,91197.0,91195.0,0.04589324]
[1767535240579,0.05473813,91197.0,91195.0,0.04589324]
[1767535240780,0.06579095,91198.0,91195.0,0.04589324]
[1767535241203,0.0548265,91197.0,91195.0,0.04589324]
[1767535241403,0.05473807,91197.0,91195.0,0.04589324]
[1767535241635,0.05482696,91196.0,91195.0,0.04589324]
[1767535242110,0.05473807,91197.0,91195.0,0.04589324]
[1767535242697,0.05482696,91196.0,91195.0,7.112e-05]
[1767535243370,0.05482696,91196.0,91195.0,0.04911969]
[1767535246207,0.05473807,91197.0,91195.0,0.04911969]
[1767535247787,0.06579202,91198.0,91195.0,0.04911969]
[1767535249188,0.03288503,91199.0,91195.0,0.04911969]
[1767535249348,0.06579091,91198.0,91196.0,0.04904857]
[1767535249757,0.08771118,91199.0,91196.0,0.04904857]
[1767535251092,0.00051949,91198.0,91195.0,0.06534457]
[1767535251295,0.00051949,91198.0,91196.0,0.05482676]
[1767535251517,0.00051949,91198.0,91195.0,0.06534457]
[1767535251734,0.00051949,91198.0,91195.0,0.01096551]
[1767535252065,0.08771058,91199.0,91195.0,0.01096551]
[1767535252846,0.03288503,91199.0,91195.0,0.06579272]
[1767535253471,0.02192,91199.0,91196.0,0.06579188]
[1767535254181,0.02192,91199.0,91196.0,0.01096539]
[1767535254760,0.02183157,91199.0,91196.0,0.06001396]
[1767535255221,0.000999,91196.0,91194.0,0.06579376]
[1767535255423,0.000999,91196.0,91194.0,0.06589257]
[1767535255618,0.05482589,91198.0,91194.0,0.06589257]
[1767535255822,0.05482593,91198.0,91194.0,0.01106444]
[1767535256385,0.06579164,91197.0,91194.0,9.881e-05]
[1767535259600,0.06579108,91198.0,91194.0,0.01106444]
[1767535259806,0.01096527,91197.0,91194.0,9.881e-05]
[1767535260101,0.01096527,91197.0,91194.0,0.04914738]
[1767535260300,0.01087683,91197.0,91194.0,0.04914738]
[1767535260481,0.06579108,91198.0,91194.0,0.11494107]
[1767535260641,0.06579034,91199.0,91196.0,0.04655606]
[1767535261262,0.08771005,91200.0,91197.0,0.04655606]
[1767535261499,0.02183157,91200.0,91198.0,0.04655606]
[1767535264214,0.07665616,91200.0,91198.0,0.04655606]
[1767535264437,0.07656772,91200.0,91197.0,0.04655606]
[1767535264649,0.02174313,91200.0,91197.0,0.04655606]
[1767535265293,0.02174313,91200.0,91198.0,0.04655606]
[1767535265517,0.02174313,91200.0,91199.0,0.04655606]
[1767535266711,0.02174313,91200.0,91199.0,0.04555706]
[1767535267010,0.07656769,91200.0,91199.0,0.04555706]
[1767535267303,0.05482528,91199.0,91196.0,0.04655606]
[1767535268275,0.06521812,91199.0,91195.0,0.06579189]
[1767535268478,0.000999,91198.0,91195.0,0.06479289]
[1767535268934,0.000999,91198.0,91196.0,0.05482684]
[1767535269158,0.01096383,91209.0,91201.0,0.01096479]
[1767535269410,0.08770409,91208.0,91204.0,0.01096443]
[1767535269624,0.03288395,91208.0,91204.0,0.06578611]
[1767535269998,0.08761326,91208.0,91204.0,0.06578611]
[1767535270196,0.08761326,91208.0,91204.0,0.01096443]
[1767535270382,0.06578447,91207.0,91203.0,0.06578686]
[1767535270584,0.06578447,91207.0,91203.0,0.05752061]
[1767535271004,0.06578447,91207.0,91203.0,0.11234306]
[1767535271207,0.22496161,91212.0,91203.0,0.11234306]
[1767535271208,0.05481846,91211.0,91210.0,0.04655606]
[1767535271386,0.07673846,91211.0,91210.0,0.04655606]
[1767535271864,0.06578328,91209.0,91205.0,0.05752037]
[1767535272044,0.01096395,91208.0,91205.0,0.04655606]
[1767535272389,0.01096383,91209.0,91205.0,0.11234191]
[1767535272534,0.05482087,91207.0,91205.0,0.04655606]
[1767535272701,0.0547324,91207.0,91205.0,0.04655606]
[1767535272899,0.06578592,91205.0,91202.0,0.04655606]
[1767535273101,0.02192,91204.0,91201.0,0.04655606]
[1767535273364,0.000999,91202.0,91201.0,0.10138002]
[1767535273573,0.02092854,91202.0,91201.0,0.10138002]
[1767535273732,0.02092854,91204.0,91201.0,0.11234481]
[1767535274163,0.02092854,91204.0,91201.0,0.05752085]
[1767535274523,0.02092854,91204.0,91202.0,0.05482335]
[1767535275168,0.02192,91206.0,91204.0,0.04655606]
[1767535275378,0.02192,91206.0,91204.0,0.0548216]
[1767535275638,0.02192,91206.0,91204.0,0.05482209]
[1767535276130,0.02192,91206.0,91204.0,0.10137815]
[1767535276271,0.02192,91206.0,91205.0,0.04655606]
[1767535277243,0.02183153,91206.0,91205.0,0.04655606]
[1767535277631,0.02183153,91206.0,91205.0,0.10137761]
[1767535278433,0.02183153,91206.0,91205.0,0.04655606]
[1767535279032,0.01096395,91208.0,91206.0,0.04655606]
[1767535279033,0.02192,91208.0,91206.0,0.04655606]